Cogmind - Beta 14 @@@ ROGUE MODE // 2025.04.26 @ 05:20:06 Player: Zonalar Result: Destroyed by G-34 Mercenary with Small Laser Performance ------------- Evolutions (0) 0 Regions Visited (1) 200 Robots Destroyed (28) 140 Value Destroyed (626) 626 Prototype IDs (1) 20 Alien Tech Used (0) 0 Bonus (0) 0 TOTAL SCORE: 986 Bonus ------- None Cogmind --------- Core Integrity 0/250 Matter 257/300 Energy 241/250 System Corruption 0% Temperature Cool (62) Movement Treading (160) Location -10/Materials Parts ------- > --- POWER (1) -------- Ion Engine > --- PROPULSION (2) --- Light Treads Improved Flight Unit > --- UTILITY (2) ------ Medium Storage Unit Core Shielding > --- WEAPON (2) ------- Small Laser Light Assault Rifle > --- INVENTORY (10) --- Aluminum Leg Improved Flight Unit Heat Sink Terrain Scan Processor Improved Targeting Computer Shield Generator Light Assault Rifle Light Assault Rifle Grenade Launcher Peak State ------------ > --- POWER ------------ Ion Engine > --- PROPULSION ------- Improved Flight Unit Improved Flight Unit > --- UTILITY ---------- Weight Redist. System Shield Generator > --- WEAPON ----------- Medium Laser Light Assault Rifle > --- INVENTORY -------- Aluminum Leg Flight Unit Structural Scanner Terrain Scan Processor Improved Targeting Computer [Rating: 13] Favorites ----------- Power Ion Engine Engine Ion Engine Propulsion Aluminum Leg Treads Light Treads Leg Aluminum Leg Flight Unit Improved Flight Unit Utility Weight Redist. System Device Weight Redist. System Storage Medium Storage Unit Processor Improved Targeting Computer Protection Core Shielding Weapon Light Assault Rifle Energy Gun Medium Laser Ballistic Gun Light Assault Rifle Launcher Grenade Launcher Build | -11 -10 ------- Run | Yrd Mat Slots Evolved . | . . Power . | . . Propulsion . | . . Utility . | . . Weapon . | . . Parts Attached 33 | 5 28 Power 5 | 1 4 Engine 5 | 1 4 Core . | . . Reactor . | . . Propulsion 10 | 2 8 Treads 2 | . 2 Leg 4 | 2 2 Wheel . | . . Hover . | . . Flight 4 | . 4 Utility 10 | . 10 Device 5 | . 5 Storage 2 | . 2 Processor 2 | . 2 Hackware . | . . Protection 1 | . 1 Artifact . | . . Weapon 8 | 2 6 Energy Gun 3 | 1 2 Energy Cannon . | . . Ballistic Gun 4 | 1 3 Ballistic Cannon . | . . Launcher 1 | . 1 Special Weapon . | . . Impact Weapon . | . . Slashing Weapon . | . . Piercing Weapon . | . . Special Melee Weapon . | . . Unidentified Prototypes 1 | . 1 Parts Lost 5 | . 5 Power 2 | . 2 Propulsion 1 | . 1 Utility 1 | . 1 Weapon 1 | . 1 Highest Loss Streak 2 | . 2 To Critical Strikes . | . . Average Slot Usage (%) 96 | . 96 Engine 13 | . 13 Treads 8 | . 8 Leg 9 | . 9 Flight 9 | . 9 Device 19 | . 19 Storage 2 | . 2 Processor 2 | . 2 Energy Gun 9 | . 9 Ballistic Gun 17 | . 17 Peak Build Rating 13 | 5 13 Average Rating 9 | 3 9 On Entrance 2 | . 5 Naked Turns . | . . Heaviest Build 19 | 7 19 Greatest Support 26 | 20 26 Greatest Overweight (x) 1 | . 1 Average Overweight (x) . | . . Largest Inventory Capacity 25 | 5 25 Average Capacity 5 | 5 5 Most Carried 10 | 5 10 Average Carried 5 | 2 5 Final Capacity 10 | 5 10 Final Carried 9 | 3 9 Class Distribution -------------------- 78% | Mutant 21% | Scavenger-Mutant Dominant Class ---------------- Mutant | -10/Materials Resources | -11 -10 ----------- Run | Yrd Mat Matter Collected 736 | 271 465 Remotely . | . . Salvage Created 909 | 33 876 Parts 48 | . 48 Haulers Intercepted 1 | . 1 Recyclers Shooed 3 | . 3 Parts Field Recycled . | . . Retrieved Matter . | . . Parts Self-Destructed . | . . Prevented . | . . Kills | -11 -10 ------- Run | Yrd Mat Combat Hostiles Destroyed 20 | 1 19 Guns 18 | 1 17 AOE 2 | . 2 Classes Destroyed 9 | 1 8 Worker 1 | . 1 Builder 2 | . 2 Hauler 1 | . 1 Recycler 1 | . 1 Mechanic 1 | . 1 Operator 1 | . 1 Watcher 1 | . 1 Swarmer 6 | . 6 Grunt 14 | 1 13 Best Kill Streak 5 | 1 5 Combat Bots Only 4 | 1 4 Max Kills in Single Turn 1 | 1 1 Gunslinging . | . . Exploded 1 | . 1 Melee . | . . Uniques/NPCs Destroyed . | . . Combat | -11 -10 -------- Run | Yrd Mat Hostile Shots Fired 169 | 10 159 Missed 48 | 1 47 Damage Taken 1089 | 101 988 Core 253 | . 253 Absorbed by Shields 166 | . 166 Redirected to Shielding 4 | . 4 Regen/Repaired (Parts) 16 | . 16 Core Remaining (%) 100 | 100 . Volleys Fired 114 | 7 107 Largest 2 | 2 2 Hottest 70 | 70 70 Shots Fired 217 | 14 203 Gun 214 | 14 200 Cannon . | . . Launcher 3 | . 3 Special . | . . Kinetic 148 | 7 141 Thermal 66 | 7 59 Explosive 3 | . 3 Electromagnetic . | . . Robot Hit Streak 12 | 4 12 Robot Miss Streak 4 | 2 4 Penetration Max . | . . Secondary Targets 3 | . 3 Max Gunslinging Chain 1 | . 1 Shots Hit Robots 136 | 9 127 Core Hits 56 | 2 54 Critical Kills 1 | . 1 Critical Parts Destroyed . | . . Critical Strikes 3 | . 3 Burn 2 | . 2 Destroy 1 | . 1 Melee Attacks . | . . Impact . | . . Slashing . | . . Piercing . | . . Sneak Attacks . | . . Combat Hostiles . | . . Follow-up Attacks . | . . Damage Inflicted 1595 | 126 1469 Guns 1476 | 126 1350 Cannons . | . . Explosions 119 | . 119 Melee . | . . Ramming . | . . Kinetic 863 | 65 798 Thermal 613 | 61 552 Explosive 119 | . 119 Electromagnetic . | . . Impact . | . . Slashing . | . . Piercing . | . . Highest Corruption . | . . Average Corruption . | . . Corruption Purged . | . . Corruption Blocked . | . . Overload Shots . | . . Overflow Damage 18 | . 18 Projectiles . | . . Explosions 18 | . 18 Melee . | . . Knockbacks . | . . Impact . | . . Kinetic . | . . Secondary . | . . Self-Inflicted Damage 43 | . 43 Shots 2 | . 2 Rammed . | . . Targets Rammed . | . . Kicked . | . . Crushed . | . . Highest Temperature 172 | 105 172 Average Temperature 34 | 57 32 Received Heat Transfer 396 | 54 342 Siege Activations . | . . Robots Corrupted . | . . Combat Hostiles . | . . Parts Fried . | . . Impact Corruptions . | . . Robots Melted . | . . Combat Hostiles . | . . Parts Melted 4 | . 4 Heat Transferred 1938 | 185 1753 Parts Sabotaged . | . . Parts Stolen . | . . Parts Stripped . | . . Power Chain Reactions . | . . Alert | -11 -10 ------- Run | Yrd Mat Peak Influence 366 | 20 366 Initial 13 | . 13 Average 117 | 4 127 Maximum Alert Level 1 | . 1 Low Security (%) 81 | 100 80 Level 1 18 | . 19 Level 2 . | . . Level 3 . | . . Level 4 . | . . Level 5 . | . . High Security . | . . Max Security . | . . Squads Dispatched 6 | . 6 Investigation 4 | . 4 Extermination . | . . Reinforcement 2 | . 2 Assault . | . . Garrison . | . . Intercept . | . . Searches Triggered . | . . Construction Impeded . | . . Haulers Reinforced . | . . Active Scanning Responses . | . . Cargo Convoy Interrupts . | . . Stealth | -11 -10 --------- Run | Yrd Mat Distress Signals 1 | . 1 Communications Jammed . | . . Distress Signals . | . . Times Spotted 34 | 1 33 Peak Tracking Total 4 | 1 4 Tactical Retreats 3 | . 3 Traps | -11 -10 ------- Run | Yrd Mat Traps Triggered 1 | . 1 Indirectly . | . . Trap Hack Attempts . | . . Triggered . | . . Disarmed . | . . Reprogrammed 6 | . 6 Reused 3 | . 3 Traps Extracted . | . . Installed . | . . Triggered 3 | . 3 Machines | -11 -10 ---------- Run | Yrd Mat Machines Disabled . | . . Max in Single Turn . | . . Machines Repaired . | . . Machines Dismantled . | . . Machines Sabotaged . | . . Overloaded Fab Kills . | . . Hacking | -11 -10 --------- Run | Yrd Mat Machines Accessed 8 | . 8 Terminals 5 | . 5 Fabricators . | . . Repair Stations 1 | . 1 Recycling Units 2 | . 2 Scanalyzers . | . . Garrison Access . | . . Total Hacks 29 | . 29 Successful 20 | . 20 Failed 9 | . 9 Catastrophic 2 | . 2 Database Lockouts . | . . Manual 1 | . 1 Terminals 20 | . 20 Fabricators . | . . Repair Stations 3 | . 3 Recycling Units 6 | . 6 Scanalyzers . | . . Garrison Access . | . . Terminal Hacks 14 | . 14 Record 7 | . 7 Recycling Unit Index 1 | . 1 Unreport Threat 1 | . 1 Locate Traps 1 | . 1 Reprogram Traps 1 | . 1 Patrol Status 1 | . 1 Transport Status 1 | . 1 Zone Layout 1 | . 1 Fabricator Hacks . | . . Repair Station Hacks 2 | . 2 Scan Component 1 | . 1 Repair 1 | . 1 Recycling Unit Hacks 4 | . 4 Process 1 | . 1 Report Inventory 2 | . 2 Retrieve Components 1 | . 1 Scanalyzer . | . . Garrison Access Hacks . | . . Unauthorized Hacks . | . . Terminals . | . . Fabricators . | . . Repair Stations . | . . Recycling Units . | . . Scanalyzers . | . . Garrison Access . | . . Data Cores Recovered . | . . Used . | . . Hacking Detections 6 | . 6 Full Trace Events 4 | . 4 Feedback Events . | . . Feedback Blocked . | . . Robot Schematics Acquired . | . . Robots Built . | . . Authchips . | . . Time . | . . Total Robot Build Rating . | . . Part Schematics Acquired . | . . Parts Built . | . . Authchips . | . . Time . | . . Total Part Build Rating . | . . Parts Repaired 1 | . 1 Time 32 | . 32 Parts Recycled . | . . Recycled Matter 409 | . 409 Retrieved Matter . | . . Retrieved Components 9 | . 9 Parts Scanalyzed . | . . Part Schematics Acquired . | . . Parts Damaged . | . . Bothacking | -11 -10 ------------ Run | Yrd Mat Used RIF Installer . | . . Robots Hacked . | . . Non-combat . | . . Combat . | . . Robot Hacks Applied . | . . Relay Couplers Released . | . . Fabnet Peak Effective % . | . . Robots Rewired . | . . Allies Hacked . | . . Hacks Repelled . | . . Allies | -11 -10 -------- Run | Yrd Mat Total Allies . | . . Largest Group . | . . Highest-Rated Group . | . . Highest-Rated Ally . | . . Total Orders . | . . Ally Attacks . | . . Total Damage . | . . Kills . | . . Allies Corrupted . | . . Allies Melted . | . . Intel | -11 -10 ------- Run | Yrd Mat Robot Analysis Total . | . . Derelict Logs Recovered . | . . Drone Launches . | . . Drone Recoveries . | . . Exploration | -11 -10 ------------- Run | Yrd Mat Turns Passed 1285 | 104 1181 Spaces Moved 743 | 69 674 Core 19 | 19 . Treads 325 | . 325 Legs 131 | 50 81 Wheels . | . . Hover . | . . Flight 268 | . 268 Fastest Speed 37 | 50 37 Average Speed 105 | 100 106 Slowest Speed 190 | 120 190 Overloaded Moves . | . . Propulsion Burnouts . | . . Robots Hopped 1 | . 1 Cave-ins Triggered . | . . Exploration Rate (%) 46 | 6 87 Regions Visited 1 Branch Regions . Pre-discovered Areas . | . . Known Exits Taken . | . . Unknown Exits Taken 1 | 1 . Scrap Searched . | . . Spaces Dug . | . . Terrain Destroyed 19 | . 19 Melee . | . . Projectile . | . . AOE 19 | . 19 Terrain Rammed . | . . Walls Destroyed . | . . Machines Disabled . | . . Actions | -11 -10 --------- Run | Yrd Mat Total 1046 | 89 957 Wait 106 | 1 105 Move 740 | 68 672 Hop 1 | . 1 Pick Up 33 | 8 25 Fast Attach 6 | . 6 Attach 13 | 5 8 Detach 2 | . 2 Swap 14 | . 14 Drop 17 | . 17 Fire 114 | 7 107 Melee . | . . Ram . | . . Kick . | . . Crush . | . . Escape Stasis . | . . Rewire . | . . Trap . | . . Miscellaneous . | . . Route ------- -11/Scrapyard -10/Materials (discovered 4 exits: [*Mat x2] / [*Min x2]) History --------- Turn | Location | Event 2 | -11/Scrapyard | Met Revision 17 59 | -11/Scrapyard | Discovered new exit (range 8) 105 | -11/Scrapyard | Entered Materials 340 | -10/Materials | Build established: Mutant 476 | -10/Materials | Discovered new exit (range 16) 552 | -10/Materials | Repaired Weight Redist. System 676 | -10/Materials | Discovered new exit (range 14) 936 | -10/Materials | Core integrity fell below 50% 976 | -10/Materials | Discovered new exit (range 3) 1156 | -10/Materials | Core integrity fell below 20% 1257 | -10/Materials | Discovered new exit (range 15) 1286 | -10/Materials | Destroyed by G-34 Mercenary with Small Laser Last Messages --------------- investigation squad. 01273_ Connecting with Terminal... >>Query(Terminal) Interactive station connected to the central network via reliable hard line. Relevant information is monitored and relayed by the terminal's Operator. Types of information accessible directly from each terminal are limited in order to mitigate the negative impacts of unauthorized access. Access is restricted by shielding the system behind multi-layered security, the first layer of which requires a dynamic key to clear without triggering defense mechanisms. >>Alert(Purge) Purged threat record, alert level lowered. >>Enumerate(Transport) Retrieving latest reported positions... Found 1 active transport squad. Downloaded coordinate data. Map ----- +----------------------------------------------------+ | #?????????????????????????????????? | | """ T #?????????????????????????????????? | | """ #?????????????????????????????????? | | """ # ???????????????????????????? | | + ???????????????????????????? | | #?????????????????????????????????? | | #?????????????????????????????????? | | ### #?????????????????????????????????? | | #?# ########+?????????????????????????? | | #?# ??????????????????????????? | | #?# ??????????????????????????? | | ### ^ ???????????????????????????? | | !# """ """ ???????????????????????????? | | # """ """ ??????????????????????????? | | # """ """ ??????????????????????????? | | + #????????????????????????????? | | # #????????????????????????????? | | # ########+####+##???????????????????????? | | # %#?#= #???????????????????????? | | # *### = """ #################???????? | | ### =* + = """ [## #???????? | | # # =### """ ## < #???????? | | # ##?# + g #???????? | | # ##?################g########????????????? | | = ###?????????# #?????????????? | | # #?????????# """ @ #?????????????? | | #?????????# """ #?????????????? | | ! ! #?????????# """ #?????????????? | | #!!! #?????????# """ #?????????????? | | ########?????????# """T""" #?????????????? | | ?????????????????###############?????????????? | | | | | | | | | | | | | | | | | | | | | | | | | | | | | | | | | | | | | | | +----------------------------------------------------+ Best States ------------- Heat Dissipation 25 Energy Generation 10 Energy Capacity 250 Matter Stores 300 Matter Capacity 300 Sight Range 16 Terrain Scan Density 10 Additional Mass Support 6 Core Shielding 20 Evasion (%) 62 Targeting Accuracy 6 Recoil Reduction 1 Item Schematics ----------------- None Robot Schematics ------------------ None Fabricated ------------ Nothing Alien Tech Used ----------------- None Achievements -------------- Risk Taker Challenges ------------ None Game ------ Seed PhasingGunCharge Manual? 0 Play Time 01:10:05 Cumulative 3.7 hours Start 2025.04.26 @ 02:27:19 End 2025.04.26 @ 05:20:06 Sessions 1 Manual Loads 0 Difficulty Rogue Special Mode None Game No. 2 Rogue 2 Adventurer 0 Explorer 0 Win Type - Total 0 Types 0/0/0/0/0/0/0/0/0 Lore% 0 Gallery% 3 Achievement% 4 Wizard Run 0 Options --------- Layout 1 ASCII 0 Keyboard 0 Movement Mouse Keybinds 0 Fullscreen 2 Font 32/SmallcapsGlow Map View 50x35 Zoom Use 0% Tactical HUD 1 Map Filters NONE Filters NONE Steam 1 RUN: 3aa5ff41-2769-4928-8392-2a7bee021f2d